{"text_format":"3","workbook":"xlsx","n_sheets":2,"sheets":["START","PERSONLIG MÅNADSBUDGET"],"read":"whole","date_system":"1900"}

{"sheet":"START","index":0,"n_rows":7,"n_cols":2,"rows_kept":7}
[null,"OM DEN HÄR MALLEN"]
[null,"Använd det här kalkylbladet Personlig månadsbudget för att spåra planerad och verklig månadsinkomst och planerad och verklig kostnad."]
[null,"Ange utgifter i olika kategorier i respektive tabell."]
[null,"Planerat saldo, verkligt saldo och skillnad beräknas automatiskt."]
[null,"Obs! "]
[null,"Ytterligare anvisningar finns i kolumn A på kalkylbladet PERSONLIG MÅNADSBUDGET. Den här texten har avsiktligt dolts. Om du vill ta bort texten markerar du kolumn A och väljer sedan TA BORT. Om du vill att texten ska visas markerar du kolumn A och ändrar sedan teckenfärg."]
[null,"Om du vill läsa mer om tabeller på kalkylbladet trycker du på SKIFT och sedan på F10 i en tabell, väljer alternativet TABELL och väljer sedan ALTERNATIV TEXT."]

{"sheet":"PERSONLIG MÅNADSBUDGET","index":1,"n_rows":64,"n_cols":10,"rows_kept":64,"merged":[[3,1,5,1],[3,2,3,3],[3,6,4,8],[3,9,4,9],[4,2,4,3],[5,2,5,3],[5,6,6,8],[5,9,6,9],[7,1,9,1],[7,2,7,3],[7,6,8,8],[7,9,8,9],[8,2,8,3],[9,2,9,3],[22,6,22,9],[23,1,23,4],[31,6,31,9],[33,1,33,4],[38,6,38,9],[40,1,40,4],[44,6,44,9],[46,1,46,4],[50,6,50,9],[54,1,54,4],[57,6,57,9],[58,6,59,8],[58,9,59,9],[60,6,61,8],[60,9,61,9],[62,6,63,8],[62,9,63,9],[64,1,64,4]]}
["Skapa en personlig månadsbudget på det här kalkylbladet. Instruktioner om hur du använder det här kalkylbladet finns i cellerna i den här kolumnen. Nedåtpil för att komma igång."]
["Kalkylbladets rubrik finns i cellen till höger. Fler anvisningar finns i cell A4.","PERSONLIG MÅNADSBUDGET"]
[]
["Etiketten Planerad månadsinkomst finns i cellen till höger. Ange Inkomst 1 i cell E4 och Extrainkomst i E5 för att beräkna Summa av månadsinkomst i E6. Fler anvisningar finns i cell A6.","PLANERAD MÅNADSINKOMST","Inkomst 1",null,{"v":4300,"d":"4,300.00 kr"},null,"PLANERAT SALDO \n(Planerad inkomst minus utgifter)",null,null,{"$f":"E6-J59","v":{"v":3405,"d":"3,405.00 kr"}}]
[null,null,"Extrainkomst",null,{"v":300,"d":"300.00 kr"}]
["Planerat saldo beräknas automatiskt i cell J4, verkligt saldo i J6 och skillnad i J8. Fler anvisningar finns i cell A8.",null,"Summa av månadsinkomst",null,{"$f":"SUM(E4:E5)","v":{"v":4600,"d":"4,600.00 kr"}},null,"VERKLIGT SALDO \n(Verklig inkomst minus utgifter)",null,null,{"$f":"E10-J61","v":{"v":3064,"d":"3,064.00 kr"}}]
[]
["Etiketten Verklig månadsinkomst finns i cellen till höger. Ange Inkomst 1 i cell E8 och Extrainkomst i E9 för att beräkna Summa av månadsinkomst i E10. Fler anvisningar finns i cell A12.","VERKLIG MÅNADSINKOMST","Inkomst 1",null,{"v":4000,"d":"4,000.00 kr"},null,"SKILLNAD \nSkillnad (Verkligt minus planerat)",null,null,{"$f":"J6-J4","v":{"v":-341,"d":"-341.00 kr"}}]
[null,null,"Extrainkomst",null,{"v":300,"d":"300.00 kr"}]
[null,null,"Summa av månadsinkomst",null,{"$f":"SUM(E8:E9)","v":{"v":4300,"d":"4,300.00 kr"}}]
[]
["Ange uppgifter i tabellen Bostad som börjar i cellen till höger och i tabellen Nöjen som börjar i cell G12. Fler anvisningar finns i cell A25.","BOSTAD","Planerad kostnad","Verklig kostnad","Skillnad",null,"NÖJEN","Planerad kostnad","Verklig kostnad","Skillnad"]
[null,"Bostadslån eller hyra",{"v":1000,"d":"1,000.00 kr"},{"v":1000,"d":"1,000.00 kr"},{"$f":"Bostad[[#This Row],[Planerad kostnad]]-Bostad[[#This Row],[Verklig kostnad]]","v":{"v":0,"d":"0.00 kr"}},null,"Video/DVD",null,null,{"$f":"Nöjen[[#This Row],[Planerad kostnad]]-Nöjen[[#This Row],[Verklig kostnad]]","v":{"v":0,"d":"0.00 kr"}}]
[null,"Telefon",{"v":54,"d":"54.00 kr"},{"v":100,"d":"100.00 kr"},{"$f":"Bostad[[#This Row],[Planerad kostnad]]-Bostad[[#This Row],[Verklig kostnad]]","v":{"v":-46,"d":"-46.00 kr"}},null,"CD",null,null,{"$f":"Nöjen[[#This Row],[Planerad kostnad]]-Nöjen[[#This Row],[Verklig kostnad]]","v":{"v":0,"d":"0.00 kr"}}]
[null,"Elektricitet",{"v":44,"d":"44.00 kr"},{"v":56,"d":"56.00 kr"},{"$f":"Bostad[[#This Row],[Planerad kostnad]]-Bostad[[#This Row],[Verklig kostnad]]","v":{"v":-12,"d":"-12.00 kr"}},null,"Bio",null,null,{"$f":"Nöjen[[#This Row],[Planerad kostnad]]-Nöjen[[#This Row],[Verklig kostnad]]","v":{"v":0,"d":"0.00 kr"}}]
[null,"Gas",{"v":22,"d":"22.00 kr"},{"v":28,"d":"28.00 kr"},{"$f":"Bostad[[#This Row],[Planerad kostnad]]-Bostad[[#This Row],[Verklig kostnad]]","v":{"v":-6,"d":"-6.00 kr"}},null,"Konserter",null,null,{"$f":"Nöjen[[#This Row],[Planerad kostnad]]-Nöjen[[#This Row],[Verklig kostnad]]","v":{"v":0,"d":"0.00 kr"}}]
[null,"VA-avgifter",{"v":8,"d":"8.00 kr"},{"v":8,"d":"8.00 kr"},{"$f":"Bostad[[#This Row],[Planerad kostnad]]-Bostad[[#This Row],[Verklig kostnad]]","v":{"v":0,"d":"0.00 kr"}},null,"Sportevenemang",null,null,{"$f":"Nöjen[[#This Row],[Planerad kostnad]]-Nöjen[[#This Row],[Verklig kostnad]]","v":{"v":0,"d":"0.00 kr"}}]
[null,"Kabel-TV",{"v":34,"d":"34.00 kr"},{"v":34,"d":"34.00 kr"},{"$f":"Bostad[[#This Row],[Planerad kostnad]]-Bostad[[#This Row],[Verklig kostnad]]","v":{"v":0,"d":"0.00 kr"}},null,"Teater",null,null,{"$f":"Nöjen[[#This Row],[Planerad kostnad]]-Nöjen[[#This Row],[Verklig kostnad]]","v":{"v":0,"d":"0.00 kr"}}]
[null,"Sophämtning",{"v":10,"d":"10.00 kr"},{"v":10,"d":"10.00 kr"},{"$f":"Bostad[[#This Row],[Planerad kostnad]]-Bostad[[#This Row],[Verklig kostnad]]","v":{"v":0,"d":"0.00 kr"}},null,"Annat",null,null,{"$f":"Nöjen[[#This Row],[Planerad kostnad]]-Nöjen[[#This Row],[Verklig kostnad]]","v":{"v":0,"d":"0.00 kr"}}]
[null,"Underhåll eller reparationer",{"v":23,"d":"23.00 kr"},{"v":0,"d":"0.00 kr"},{"$f":"Bostad[[#This Row],[Planerad kostnad]]-Bostad[[#This Row],[Verklig kostnad]]","v":{"v":23,"d":"23.00 kr"}},null,"Annat",null,null,{"$f":"Nöjen[[#This Row],[Planerad kostnad]]-Nöjen[[#This Row],[Verklig kostnad]]","v":{"v":0,"d":"0.00 kr"}}]
[null,"Material",{"v":0,"d":"0.00 kr"},{"v":0,"d":"0.00 kr"},{"$f":"Bostad[[#This Row],[Planerad kostnad]]-Bostad[[#This Row],[Verklig kostnad]]","v":{"v":0,"d":"0.00 kr"}},null,"Annat",null,null,{"$f":"Nöjen[[#This Row],[Planerad kostnad]]-Nöjen[[#This Row],[Verklig kostnad]]","v":{"v":0,"d":"0.00 kr"}}]
[null,"Annat",{"v":0,"d":"0.00 kr"},{"v":0,"d":"0.00 kr"},{"$f":"Bostad[[#This Row],[Planerad kostnad]]-Bostad[[#This Row],[Verklig kostnad]]","v":{"v":0,"d":"0.00 kr"}},null,"Delsumma",null,null,{"$f":"SUBTOTAL(109,Nöjen[Skillnad])","v":{"v":0,"d":"0.00 kr"}}]
[null,"Delsumma",null,null,{"$f":"SUBTOTAL(109,Bostad[Skillnad])","v":{"v":-41,"d":"-41.00 kr"}}]
[{"$nulls":6},"LÅN","Planerad kostnad","Verklig kostnad","Skillnad"]
["Ange uppgifter i tabellen Transport som börjar i cellen till höger och i tabellen Lån som börjar i cell G24. Fler anvisningar finns i cell A35.","TRANSPORT","Planerad kostnad","Verklig kostnad","Skillnad",null,"Privat",null,null,{"$f":"Lån[[#This Row],[Planerad kostnad]]-Lån[[#This Row],[Verklig kostnad]]","v":{"v":0,"d":"0.00 kr"}}]
[null,"Avbetalning, fordon",null,null,{"$f":"Transport[[#This Row],[Planerad kostnad]]-Transport[[#This Row],[Verklig kostnad]]","v":{"v":0,"d":"0.00 kr"}},null,"Student",null,null,{"$f":"Lån[[#This Row],[Planerad kostnad]]-Lån[[#This Row],[Verklig kostnad]]","v":{"v":0,"d":"0.00 kr"}}]
[null,"Buss/taxi",null,null,{"$f":"Transport[[#This Row],[Planerad kostnad]]-Transport[[#This Row],[Verklig kostnad]]","v":{"v":0,"d":"0.00 kr"}},null,"Kreditkort",null,null,{"$f":"Lån[[#This Row],[Planerad kostnad]]-Lån[[#This Row],[Verklig kostnad]]","v":{"v":0,"d":"0.00 kr"}}]
[null,"Försäkring",null,null,{"$f":"Transport[[#This Row],[Planerad kostnad]]-Transport[[#This Row],[Verklig kostnad]]","v":{"v":0,"d":"0.00 kr"}},null,"Kreditkort",null,null,{"$f":"Lån[[#This Row],[Planerad kostnad]]-Lån[[#This Row],[Verklig kostnad]]","v":{"v":0,"d":"0.00 kr"}}]
[null,"Licensavgift",null,null,{"$f":"Transport[[#This Row],[Planerad kostnad]]-Transport[[#This Row],[Verklig kostnad]]","v":{"v":0,"d":"0.00 kr"}},null,"Kreditkort",null,null,{"$f":"Lån[[#This Row],[Planerad kostnad]]-Lån[[#This Row],[Verklig kostnad]]","v":{"v":0,"d":"0.00 kr"}}]
[null,"Bränsle",null,null,{"$f":"Transport[[#This Row],[Planerad kostnad]]-Transport[[#This Row],[Verklig kostnad]]","v":{"v":0,"d":"0.00 kr"}},null,"Annat",null,null,{"$f":"Lån[[#This Row],[Planerad kostnad]]-Lån[[#This Row],[Verklig kostnad]]","v":{"v":0,"d":"0.00 kr"}}]
[null,"Underhåll",null,null,{"$f":"Transport[[#This Row],[Planerad kostnad]]-Transport[[#This Row],[Verklig kostnad]]","v":{"v":0,"d":"0.00 kr"}},null,"Delsumma",null,null,{"$f":"SUBTOTAL(109,Lån[Skillnad])","v":{"v":0,"d":"0.00 kr"}}]
[null,"Annat",null,null,{"$f":"Transport[[#This Row],[Planerad kostnad]]-Transport[[#This Row],[Verklig kostnad]]","v":{"v":0,"d":"0.00 kr"}}]
[null,"Delsumma",null,null,{"$f":"SUBTOTAL(109,Transport[Skillnad])","v":{"v":0,"d":"0.00 kr"}},null,"SKATTER","Planerad kostnad","Verklig kostnad","Skillnad"]
[{"$nulls":6},"Stat",null,null,{"$f":"Skatter[[#This Row],[Planerad kostnad]]-Skatter[[#This Row],[Verklig kostnad]]","v":{"v":0,"d":"0.00 kr"}}]
["Ange uppgifter i tabellen Försäkring som börjar i cellen till höger och i tabellen Skatter som börjar i cell G33. Fler anvisningar finns i cell A42.","FÖRSÄKRING","Planerad kostnad","Verklig kostnad","Skillnad",null,"Landsting",null,null,{"$f":"Skatter[[#This Row],[Planerad kostnad]]-Skatter[[#This Row],[Verklig kostnad]]","v":{"v":0,"d":"0.00 kr"}}]
[null,"Hemförsäkring",null,null,{"$f":"Försäkring[[#This Row],[Planerad kostnad]]-Försäkring[[#This Row],[Verklig kostnad]]","v":{"v":0,"d":"0.00 kr"}},null,"Kommunal",null,null,{"$f":"Skatter[[#This Row],[Planerad kostnad]]-Skatter[[#This Row],[Verklig kostnad]]","v":{"v":0,"d":"0.00 kr"}}]
[null,"Sjukförsäkring",null,null,{"$f":"Försäkring[[#This Row],[Planerad kostnad]]-Försäkring[[#This Row],[Verklig kostnad]]","v":{"v":0,"d":"0.00 kr"}},null,"Annat",null,null,{"$f":"Skatter[[#This Row],[Planerad kostnad]]-Skatter[[#This Row],[Verklig kostnad]]","v":{"v":0,"d":"0.00 kr"}}]
[null,"Livförsäkring",null,null,{"$f":"Försäkring[[#This Row],[Planerad kostnad]]-Försäkring[[#This Row],[Verklig kostnad]]","v":{"v":0,"d":"0.00 kr"}},null,"Delsumma",null,null,{"$f":"SUBTOTAL(109,Skatter[Skillnad])","v":{"v":0,"d":"0.00 kr"}}]
[null,"Annat",null,null,{"$f":"Försäkring[[#This Row],[Planerad kostnad]]-Försäkring[[#This Row],[Verklig kostnad]]","v":{"v":0,"d":"0.00 kr"}}]
[null,"Delsumma",null,null,{"$f":"SUBTOTAL(109,Försäkring[Skillnad])","v":{"v":0,"d":"0.00 kr"}},null,"SPARANDE ELLER INVESTERINGAR","Planerad kostnad","Verklig kostnad","Skillnad"]
[{"$nulls":6},"Pensionssparande",null,null,{"$f":"Sparande[[#This Row],[Planerad kostnad]]-Sparande[[#This Row],[Verklig kostnad]]","v":{"v":0,"d":"0.00 kr"}}]
["Ange uppgifter i tabellen Mat som börjar i cellen till höger och i tabellen Sparande som börjar i cell G40. Fler anvisningar finns i cell A48.","MAT","Planerad kostnad","Verklig kostnad","Skillnad",null,"Investeringskonto",null,null,{"$f":"Sparande[[#This Row],[Planerad kostnad]]-Sparande[[#This Row],[Verklig kostnad]]","v":{"v":0,"d":"0.00 kr"}}]
[null,"Matvaror",null,null,{"$f":"Mat[[#This Row],[Planerad kostnad]]-Mat[[#This Row],[Verklig kostnad]]","v":{"v":0,"d":"0.00 kr"}},null,"Annat",null,null,{"$f":"Sparande[[#This Row],[Planerad kostnad]]-Sparande[[#This Row],[Verklig kostnad]]","v":{"v":0,"d":"0.00 kr"}}]
[null,"Restaurangbesök",null,null,{"$f":"Mat[[#This Row],[Planerad kostnad]]-Mat[[#This Row],[Verklig kostnad]]","v":{"v":0,"d":"0.00 kr"}},null,"Delsumma",null,null,{"$f":"SUBTOTAL(109,Sparande[Skillnad])","v":{"v":0,"d":"0.00 kr"}}]
[null,"Annat",null,null,{"$f":"Mat[[#This Row],[Planerad kostnad]]-Mat[[#This Row],[Verklig kostnad]]","v":{"v":0,"d":"0.00 kr"}}]
[null,"Delsumma",null,null,{"$f":"SUBTOTAL(109,Mat[Skillnad])","v":{"v":0,"d":"0.00 kr"}},null,"GÅVOR OCH DONATIONER","Planerad kostnad","Verklig kostnad","Skillnad"]
[{"$nulls":6},"Välgörenhet 1",null,null,{"$f":"Gåvor[[#This Row],[Planerad kostnad]]-Gåvor[[#This Row],[Verklig kostnad]]","v":{"v":0,"d":"0.00 kr"}}]
["Ange uppgifter i tabellen Husdjur som börjar i cellen till höger och i tabellen Gåvor som börjar i cell G46. Fler anvisningar finns i cell A56.","HUSDJUR","Planerad kostnad","Verklig kostnad","Skillnad",null,"Välgörenhet 2",null,null,{"$f":"Gåvor[[#This Row],[Planerad kostnad]]-Gåvor[[#This Row],[Verklig kostnad]]","v":{"v":0,"d":"0.00 kr"}}]
[null,"Mat",null,null,{"$f":"Husdjur[[#This Row],[Planerad kostnad]]-Husdjur[[#This Row],[Verklig kostnad]]","v":{"v":0,"d":"0.00 kr"}},null,"Välgörenhet 3",null,null,{"$f":"Gåvor[[#This Row],[Planerad kostnad]]-Gåvor[[#This Row],[Verklig kostnad]]","v":{"v":0,"d":"0.00 kr"}}]
[null,"Medicin",null,null,{"$f":"Husdjur[[#This Row],[Planerad kostnad]]-Husdjur[[#This Row],[Verklig kostnad]]","v":{"v":0,"d":"0.00 kr"}},null,"Delsumma",null,null,{"$f":"SUBTOTAL(109,Gåvor[Skillnad])","v":{"v":0,"d":"0.00 kr"}}]
[null,"Omvårdnad",null,null,{"$f":"Husdjur[[#This Row],[Planerad kostnad]]-Husdjur[[#This Row],[Verklig kostnad]]","v":{"v":0,"d":"0.00 kr"}}]
[null,"Leksaker",null,null,{"$f":"Husdjur[[#This Row],[Planerad kostnad]]-Husdjur[[#This Row],[Verklig kostnad]]","v":{"v":0,"d":"0.00 kr"}},null,"JURIDISKT","Planerad kostnad","Verklig kostnad","Skillnad"]
[null,"Annat",null,null,{"$f":"Husdjur[[#This Row],[Planerad kostnad]]-Husdjur[[#This Row],[Verklig kostnad]]","v":{"v":0,"d":"0.00 kr"}},null,"Advokat",null,null,{"$f":"Juridiskt[[#This Row],[Planerad kostnad]]-Juridiskt[[#This Row],[Verklig kostnad]]","v":{"v":0,"d":"0.00 kr"}}]
[null,"Delsumma",null,null,{"$f":"SUBTOTAL(109,Husdjur[Skillnad])","v":{"v":0,"d":"0.00 kr"}},null,"Underhåll",null,null,{"$f":"Juridiskt[[#This Row],[Planerad kostnad]]-Juridiskt[[#This Row],[Verklig kostnad]]","v":{"v":0,"d":"0.00 kr"}}]
[{"$nulls":6},"Betalning av fordran",null,null,{"$f":"Juridiskt[[#This Row],[Planerad kostnad]]-Juridiskt[[#This Row],[Verklig kostnad]]","v":{"v":0,"d":"0.00 kr"}}]
["Ange uppgifter i tabellen Hygien som börjar i cellen till höger och i tabellen Juridiskt som börjar i cell G52. Fler anvisningar finns i cell A59.","HYGIEN","Planerad kostnad","Verklig kostnad","Skillnad",null,"Annat",null,null,{"$f":"Juridiskt[[#This Row],[Planerad kostnad]]-Juridiskt[[#This Row],[Verklig kostnad]]","v":{"v":0,"d":"0.00 kr"}}]
[null,"Medicin",null,null,{"$f":"Hygien[[#This Row],[Planerad kostnad]]-Hygien[[#This Row],[Verklig kostnad]]","v":{"v":0,"d":"0.00 kr"}},null,"Delsumma",null,null,{"$f":"SUBTOTAL(109,Juridiskt[Skillnad])","v":{"v":0,"d":"0.00 kr"}}]
[null,"Hår/naglar",null,null,{"$f":"Hygien[[#This Row],[Planerad kostnad]]-Hygien[[#This Row],[Verklig kostnad]]","v":{"v":0,"d":"0.00 kr"}}]
["Total planerad kostnad beräknas automatiskt i cell J59, Total verklig kostnad i J61 och Total skillnad i J63.","Kläder",null,null,{"$f":"Hygien[[#This Row],[Planerad kostnad]]-Hygien[[#This Row],[Verklig kostnad]]","v":{"v":0,"d":"0.00 kr"}},null,"SUMMA AV PLANERAD KOSTNAD",null,null,{"$f":"SUBTOTAL(109,Bostad[Planerad kostnad],Transport[Planerad kostnad],Försäkring[Planerad kostnad],Mat[Planerad kostnad],Husdjur[Planerad kostnad],Hygien[Planerad kostnad],Nöjen[Planerad kostnad],Lån[Planerad kostnad],Skatter[Planerad kostnad],Sparande[Planerad kostnad],Gåvor[Planerad kostnad],Juridiskt[Planerad kostnad])","v":{"v":1195,"d":"1,195.00 kr"}}]
[null,"Kemtvätt",null,null,{"$f":"Hygien[[#This Row],[Planerad kostnad]]-Hygien[[#This Row],[Verklig kostnad]]","v":{"v":0,"d":"0.00 kr"}}]
[null,"Gym",null,null,{"$f":"Hygien[[#This Row],[Planerad kostnad]]-Hygien[[#This Row],[Verklig kostnad]]","v":{"v":0,"d":"0.00 kr"}},null,"SUMMA AV VERKLIG KOSTNAD",null,null,{"$f":"SUBTOTAL(109,Bostad[Verklig kostnad],Transport[Verklig kostnad],Försäkring[Verklig kostnad],Mat[Verklig kostnad],Husdjur[Verklig kostnad],Hygien[Verklig kostnad],Nöjen[Verklig kostnad],Lån[Verklig kostnad],Skatter[Verklig kostnad],Sparande[Verklig kostnad],Gåvor[Verklig kostnad],Juridiskt[Verklig kostnad])","v":{"v":1236,"d":"1,236.00 kr"}}]
[null,"Medlemsavgifter",null,null,{"$f":"Hygien[[#This Row],[Planerad kostnad]]-Hygien[[#This Row],[Verklig kostnad]]","v":{"v":0,"d":"0.00 kr"}}]
[null,"Annat",null,null,{"$f":"Hygien[[#This Row],[Planerad kostnad]]-Hygien[[#This Row],[Verklig kostnad]]","v":{"v":0,"d":"0.00 kr"}},null,"SUMMA AV SKILLNAD",null,null,{"$f":"J59-J61","v":{"v":-41,"d":"-41.00 kr"}}]
[null,"Delsumma",null,null,{"$f":"SUBTOTAL(109,Hygien[Skillnad])","v":{"v":0,"d":"0.00 kr"}}]